[Event "Titled Tuesday Blitz July 11 Late 2023"]
[White "Buchenau, Frank"]
[Black "Pulpan, Jakub"]
[WhiteFideId "4604350"]
[BlackFideId "302759"]
[WhiteElo "2384"]
[BlackElo "2700"]
[Result "1-0"]
[Round "1"]
[TimeControl "180+2"]
[Date "2023.07.11"]
[WhiteClock "0:00:04"]
[BlackClock "0:00:03"]
[Board "93"]

1. e4 {[%clk 0:02:59]}  a6 {[%clk 0:02:52]} 2. d4 {[%clk 0:02:58]}  e6 {[%clk 0:02:43]} 3. c4 {[%clk 0:02:58]}  d5 {[%clk 0:02:42]} 4. Nc3 {[%clk 0:02:56]}  dxe4 {[%clk 0:02:40]} 5. Nxe4 {[%clk 0:02:56]}  Nf6 {[%clk 0:02:41]} 6. Nxf6+ {[%clk 0:02:55]}  Qxf6 {[%clk 0:02:40]} 7. Nf3 {[%clk 0:02:54]}  Bb4+ {[%clk 0:02:40]} 8. Bd2 {[%clk 0:02:53]}  Bxd2+ {[%clk 0:02:39]} 9. Qxd2 {[%clk 0:02:54]}  b6 {[%clk 0:02:37]} 10. Be2 {[%clk 0:02:45]}  Bb7 {[%clk 0:02:36]} 11. O-O-O {[%clk 0:02:43]}  Nd7 {[%clk 0:02:35]} 12. Qe3 {[%clk 0:02:30]}  O-O-O {[%clk 0:02:31]} 13. Rhe1 {[%clk 0:02:26]}  Kb8 {[%clk 0:02:27]} 14. Kb1 {[%clk 0:02:22]}  Rhe8 {[%clk 0:02:23]} 15. Ka1 {[%clk 0:02:21]}  h6 {[%clk 0:01:55]} 16. a3 {[%clk 0:02:20]}  g5 {[%clk 0:01:49]} 17. h3 {[%clk 0:02:18]}  Qf4 {[%clk 0:01:46]} 18. Qxf4 {[%clk 0:02:08]}  gxf4 {[%clk 0:01:47]} 19. Bf1 {[%clk 0:01:52]}  Bxf3 {[%clk 0:01:44]} 20. gxf3 {[%clk 0:01:52]}  Nf6 {[%clk 0:01:45]} 21. Kb1 {[%clk 0:01:44]}  Rg8 {[%clk 0:01:39]} 22. Kc2 {[%clk 0:01:31]}  Rg1 {[%clk 0:01:34]} 23. b4 {[%clk 0:01:14]}  Nh7 {[%clk 0:01:22]} 24. Re4 {[%clk 0:01:10]}  Ng5 {[%clk 0:01:02]} 25. Rxf4 {[%clk 0:01:10]}  f5 {[%clk 0:01:03]} 26. h4 {[%clk 0:00:54]}  Nf7 {[%clk 0:00:51]} 27. d5 {[%clk 0:00:52]}  exd5 {[%clk 0:00:36]} 28. Rxf5 {[%clk 0:00:52]}  Nd6 {[%clk 0:00:35]} 29. Rfxd5 {[%clk 0:00:46]}  Rf8 {[%clk 0:00:34]} 30. c5 {[%clk 0:00:42]}  Nb5 {[%clk 0:00:16]} 31. Bxb5 {[%clk 0:00:35]}  Rxd1 {[%clk 0:00:15]} 32. Kxd1 {[%clk 0:00:31]}  axb5 {[%clk 0:00:16]} 33. cxb6 {[%clk 0:00:30]}  cxb6 {[%clk 0:00:11]} 34. Ke2 {[%clk 0:00:29]}  Rf4 {[%clk 0:00:10]} 35. Rh5 {[%clk 0:00:27]}  Rf6 {[%clk 0:00:07]} 36. Rxb5 {[%clk 0:00:26]}  Kb7 {[%clk 0:00:08]} 37. a4 {[%clk 0:00:25]}  Kc6 {[%clk 0:00:07]} 38. Rh5 {[%clk 0:00:24]}  Kd6 {[%clk 0:00:07]} 39. Ke3 {[%clk 0:00:23]}  Re6+ {[%clk 0:00:07]} 40. Kd4 {[%clk 0:00:23]}  Rf6 {[%clk 0:00:07]} 41. Ke4 {[%clk 0:00:21]}  Re6+ {[%clk 0:00:07]} 42. Kf5 {[%clk 0:00:19]}  Ke7 {[%clk 0:00:06]} 43. f4 {[%clk 0:00:18]}  Rc6 {[%clk 0:00:03]} 44. Kg4 {[%clk 0:00:15]}  Rg6+ {[%clk 0:00:03]} 45. Kf3 {[%clk 0:00:14]}  Rc6 {[%clk 0:00:03]} 46. Rb5 {[%clk 0:00:13]}  Kf6 {[%clk 0:00:03]} 47. f5 {[%clk 0:00:12]}  Rc3+ {[%clk 0:00:03]} 48. Kf4 {[%clk 0:00:12]}  Rc4+ {[%clk 0:00:03]} 49. Ke3 {[%clk 0:00:11]}  Rxh4 {[%clk 0:00:03]} 50. Rxb6+ {[%clk 0:00:11]}  Kxf5 {[%clk 0:00:04]} 51. a5 {[%clk 0:00:11]}  Rh3+ {[%clk 0:00:04]} 52. f3 {[%clk 0:00:11]}  Rh1 {[%clk 0:00:05]} 53. a6 {[%clk 0:00:12]}  h5 {[%clk 0:00:05]} 54. b5 {[%clk 0:00:13]}  Ra1 {[%clk 0:00:05]} 55. Rb7 {[%clk 0:00:12]}  h4 {[%clk 0:00:05]} 56. Rh7 {[%clk 0:00:12]}  Ra3+ {[%clk 0:00:04]} 57. Kd4 {[%clk 0:00:12]}  Ke6 {[%clk 0:00:03]} 58. Kc5 {[%clk 0:00:12]}  Ra4 {[%clk 0:00:03]} 59. Kb6 {[%clk 0:00:12]}  Kf5 {[%clk 0:00:02]} 60. a7 {[%clk 0:00:12]}  Kg6 {[%clk 0:00:03]} 61. Rc7 {[%clk 0:00:10]}  h3 {[%clk 0:00:03]} 62. Rc2 {[%clk 0:00:10]}  Kg5 {[%clk 0:00:03]} 63. Kb7 {[%clk 0:00:10]}  Rb4 {[%clk 0:00:03]} 64. b6 {[%clk 0:00:10]}  Rf4 {[%clk 0:00:03]} 65. a8=Q {[%clk 0:00:10]}  Kh4 {[%clk 0:00:04]} 66. Qh8+ {[%clk 0:00:09]}  Kg3 {[%clk 0:00:04]} 67. Qg7+ {[%clk 0:00:09]}  Kxf3 {[%clk 0:00:05]} 68. Qg1 {[%clk 0:00:08]}  Re4 {[%clk 0:00:04]} 69. Rf2+ {[%clk 0:00:08]}  Ke3 {[%clk 0:00:04]} 70. Qe1+ {[%clk 0:00:07]}  Kd4 {[%clk 0:00:05]} 71. Rd2+ {[%clk 0:00:07]}  Ke5 {[%clk 0:00:05]} 72. Qg3+ {[%clk 0:00:07]}  Kf6 {[%clk 0:00:05]} 73. Rd6+ {[%clk 0:00:07]}  Kf5 {[%clk 0:00:05]} 74. Qxh3+ {[%clk 0:00:06]}  Kg5 {[%clk 0:00:05]} 75. Qg2+ {[%clk 0:00:05]}  Kf5 {[%clk 0:00:04]} 76. Rd5+ {[%clk 0:00:04]}  Kf6 {[%clk 0:00:03]} 1-0


[Site "https://www.chess.com"]

[Event "Titled Tuesday Blitz July 11 Late 2023"]
[White "Cugimura97"]
[Black "EsmeraldasAnderson03"]
[WhiteElo "2695"]
[BlackElo "2383"]
[Result "1-0"]
[Round "1"]
[TimeControl "180+2"]
[Date "2023.07.11"]
[WhiteClock "0:00:41"]
[BlackClock "0:00:04"]
[Board "94"]

1. d4 {[%clk 0:03:00]}  d5 {[%clk 0:00:21]} 2. Bf4 {[%clk 0:02:50]}  e6 {[%clk 0:00:13]} 3. e3 {[%clk 0:02:49]}  Nf6 {[%clk 0:00:07]} 4. Nf3 {[%clk 0:02:47]}  Bd6 {[%clk 0:00:05]} 5. Ne5 {[%clk 0:02:47]}  O-O {[%clk 0:00:04]} 6. Bd3 {[%clk 0:02:46]}  c5 {[%clk 0:00:04]} 7. c3 {[%clk 0:02:45]}  Qc7 {[%clk 0:00:05]} 8. Nd2 {[%clk 0:02:41]}  Nc6 {[%clk 0:00:03]} 9. Ndf3 {[%clk 0:02:39]}  Ne4 {[%clk 0:00:04]} 10. O-O {[%clk 0:02:36]}  f6 {[%clk 0:00:04]} 11. Nxc6 {[%clk 0:02:28]}  Bxf4 {[%clk 0:00:05]} 12. exf4 {[%clk 0:02:24]}  Qxc6 {[%clk 0:00:05]} 13. dxc5 {[%clk 0:02:24]}  Nxc5 {[%clk 0:00:04]} 14. Bc2 {[%clk 0:02:14]}  Qc7 {[%clk 0:00:04]} 15. Qd2 {[%clk 0:02:12]}  b6 {[%clk 0:00:05]} 16. Rfe1 {[%clk 0:02:09]}  Bb7 {[%clk 0:00:02]} 17. b4 {[%clk 0:02:05]}  Ne4 {[%clk 0:00:02]} 18. Qe3 {[%clk 0:02:01]}  Qxc3 {[%clk 0:00:01]} 19. Bxe4 {[%clk 0:02:00]}  Qxe3 {[%clk 0:00:02]} 20. Bxh7+ {[%clk 0:02:00]}  Kxh7 {[%clk 0:00:01]} 21. Rxe3 {[%clk 0:01:58]}  Rfe8 {[%clk 0:00:02]} 22. Nd4 {[%clk 0:01:53]}  e5 {[%clk 0:00:02]} 23. fxe5 {[%clk 0:01:53]}  fxe5 {[%clk 0:00:03]} 24. Rae1 {[%clk 0:01:52]}  Rac8 {[%clk 0:00:01]} 25. h3 {[%clk 0:01:47]}  e4 {[%clk 0:00:01]} 26. f3 {[%clk 0:01:36]}  Rc4 {[%clk 0:00:01]} 27. Nf5 {[%clk 0:01:31]}  Rd8 {[%clk 0:00:02]} 28. fxe4 {[%clk 0:01:30]}  dxe4 {[%clk 0:00:03]} 29. Ra3 {[%clk 0:01:28]}  Rd3 {[%clk 0:00:04]} 30. Rxa7 {[%clk 0:01:25]}  Rc7 {[%clk 0:00:04]} 31. a3 {[%clk 0:01:20]}  Kg6 {[%clk 0:00:04]} 32. Ne3 {[%clk 0:01:18]}  Rdc3 {[%clk 0:00:04]} 33. a4 {[%clk 0:01:06]}  Rc1 {[%clk 0:00:04]} 34. Rxc1 {[%clk 0:00:58]}  Rxc1+ {[%clk 0:00:04]} 35. Kf2 {[%clk 0:00:59]}  Bc8 {[%clk 0:00:05]} 36. Kg3 {[%clk 0:00:47]}  Rb1 {[%clk 0:00:05]} 37. Rc7 {[%clk 0:00:45]}  Be6 {[%clk 0:00:04]} 38. Rc6 {[%clk 0:00:42]}  Kf7 {[%clk 0:00:05]} 39. Rxb6 {[%clk 0:00:42]}  Rb3 {[%clk 0:00:06]} 40. Kf4 {[%clk 0:00:42]}  g5+ {[%clk 0:00:04]} 41. Kxe4 {[%clk 0:00:42]}  Rxe3+ {[%clk 0:00:04]} 42. Kxe3 {[%clk 0:00:41]} 1-0


[Site "https://www.chess.com"]

[Event "Titled Tuesday Blitz July 11 Late 2023"]
[White "micke12a"]
[Black "Matinian, Nikita"]
[BlackFideId "24129100"]
[WhiteElo "2380"]
[BlackElo "2694"]
[Result "0-1"]
[Round "1"]
[TimeControl "180+2"]
[Date "2023.07.11"]
[WhiteClock "0:00:05"]
[BlackClock "0:00:09"]
[Board "95"]

1. d4 {[%clk 0:02:57]}  Nf6 {[%clk 0:02:39]} 2. Nf3 {[%clk 0:02:57]}  e6 {[%clk 0:02:40]} 3. g3 {[%clk 0:02:56]}  b5 {[%clk 0:02:39]} 4. Bg2 {[%clk 0:02:56]}  Bb7 {[%clk 0:02:38]} 5. O-O {[%clk 0:02:57]}  c5 {[%clk 0:02:37]} 6. a4 {[%clk 0:02:56]}  b4 {[%clk 0:02:36]} 7. Nbd2 {[%clk 0:02:55]}  cxd4 {[%clk 0:02:35]} 8. Nxd4 {[%clk 0:02:55]}  Bxg2 {[%clk 0:02:35]} 9. Kxg2 {[%clk 0:02:55]}  Qb6 {[%clk 0:02:36]} 10. N2b3 {[%clk 0:02:54]}  Nc6 {[%clk 0:02:35]} 11. Be3 {[%clk 0:02:53]}  Ng4 {[%clk 0:02:22]} 12. Bc1 {[%clk 0:02:47]}  h5 {[%clk 0:02:20]} 13. h3 {[%clk 0:02:47]}  Nge5 {[%clk 0:02:18]} 14. Bf4 {[%clk 0:02:37]}  Nc4 {[%clk 0:02:12]} 15. Nb5 {[%clk 0:02:19]}  e5 {[%clk 0:02:12]} 16. Qd5 {[%clk 0:02:07]}  exf4 {[%clk 0:02:11]} 17. Qxc4 {[%clk 0:02:06]}  a6 {[%clk 0:02:00]} 18. N5d4 {[%clk 0:02:01]}  Nxd4 {[%clk 0:01:44]} 19. Nxd4 {[%clk 0:02:01]}  Qc5 {[%clk 0:01:24]} 20. Qxc5 {[%clk 0:01:51]}  Bxc5 {[%clk 0:01:25]} 21. Nb3 {[%clk 0:01:51]}  Bd6 {[%clk 0:01:25]} 22. Rad1 {[%clk 0:01:44]}  Be5 {[%clk 0:01:25]} 23. Rd5 {[%clk 0:01:38]}  Bxb2 {[%clk 0:01:25]} 24. gxf4 {[%clk 0:01:37]}  Rc8 {[%clk 0:01:25]} 25. Nd4 {[%clk 0:01:26]}  Rh6 {[%clk 0:01:02]} 26. Rb1 {[%clk 0:01:17]}  Bxd4 {[%clk 0:01:01]} 27. Rxd4 {[%clk 0:01:17]}  a5 {[%clk 0:01:02]} 28. Rd5 {[%clk 0:01:09]}  Ra6 {[%clk 0:01:01]} 29. Rbd1 {[%clk 0:00:41]}  Rxc2 {[%clk 0:00:46]} 30. Rxh5 {[%clk 0:00:32]}  Rxe2 {[%clk 0:00:41]} 31. Rdd5 {[%clk 0:00:30]}  Ra2 {[%clk 0:00:31]} 32. Rxa5 {[%clk 0:00:30]}  Rxa4 {[%clk 0:00:31]} 33. Rxa6 {[%clk 0:00:15]}  Rxa6 {[%clk 0:00:30]} 34. Rb5 {[%clk 0:00:16]}  Ra4 {[%clk 0:00:28]} 35. Kf3 {[%clk 0:00:16]}  Ke7 {[%clk 0:00:27]} 36. Rb6 {[%clk 0:00:14]}  g6 {[%clk 0:00:26]} 37. Kg4 {[%clk 0:00:13]}  d6 {[%clk 0:00:25]} 38. Rb7+ {[%clk 0:00:11]}  Ke6 {[%clk 0:00:25]} 39. h4 {[%clk 0:00:12]}  Ra2 {[%clk 0:00:10]} 40. Rxb4 {[%clk 0:00:10]}  Rxf2 {[%clk 0:00:10]} 41. Re4+ {[%clk 0:00:10]}  Kf6 {[%clk 0:00:10]} 42. Rd4 {[%clk 0:00:10]}  Ke7 {[%clk 0:00:10]} 43. Re4+ {[%clk 0:00:09]}  Kd7 {[%clk 0:00:11]} 44. h5 {[%clk 0:00:09]}  gxh5+ {[%clk 0:00:09]} 45. Kxh5 {[%clk 0:00:08]}  Rg2 {[%clk 0:00:09]} 46. f5 {[%clk 0:00:08]}  Rg8 {[%clk 0:00:09]} 47. f6 {[%clk 0:00:07]}  Re8 {[%clk 0:00:09]} 48. Rf4 {[%clk 0:00:06]}  d5 {[%clk 0:00:08]} 49. Kh6 {[%clk 0:00:06]}  Rg8 {[%clk 0:00:08]} 50. Kh7 {[%clk 0:00:06]}  Rg6 {[%clk 0:00:08]} 51. Rf1 {[%clk 0:00:03]}  Ke6 {[%clk 0:00:08]} 52. Re1+ {[%clk 0:00:03]}  Kxf6 {[%clk 0:00:09]} 53. Rf1+ {[%clk 0:00:04]}  Ke6 {[%clk 0:00:09]} 54. Re1+ {[%clk 0:00:04]}  Kd6 {[%clk 0:00:09]} 55. Rf1 {[%clk 0:00:05]}  Ke7 {[%clk 0:00:09]} 56. Re1+ {[%clk 0:00:04]}  Re6 {[%clk 0:00:09]} 57. Rd1 {[%clk 0:00:04]}  Rd6 {[%clk 0:00:09]} 58. Kg7 {[%clk 0:00:04]}  f6 {[%clk 0:00:08]} 59. Re1+ {[%clk 0:00:04]}  Re6 {[%clk 0:00:07]} 60. Rd1 {[%clk 0:00:05]}  Re5 {[%clk 0:00:07]} 61. Kg6 {[%clk 0:00:04]}  Ke6 {[%clk 0:00:07]} 62. Ra1 {[%clk 0:00:04]}  Rg5+ {[%clk 0:00:07]} 63. Kh6 {[%clk 0:00:04]}  d4 {[%clk 0:00:08]} 64. Ra6+ {[%clk 0:00:04]}  Ke5 {[%clk 0:00:08]} 65. Ra5+ {[%clk 0:00:05]}  Ke4 {[%clk 0:00:09]} 66. Ra6 {[%clk 0:00:06]}  Rg1 {[%clk 0:00:08]} 67. Rxf6 {[%clk 0:00:05]}  d3 {[%clk 0:00:09]} 68. Re6+ {[%clk 0:00:06]}  Kf3 {[%clk 0:00:09]} 69. Rf6+ {[%clk 0:00:06]}  Ke2 {[%clk 0:00:09]} 70. Re6+ {[%clk 0:00:07]}  Kd1 {[%clk 0:00:10]} 71. Ra6 {[%clk 0:00:06]}  Rg2 {[%clk 0:00:08]} 72. Ra1+ {[%clk 0:00:06]}  Ke2 {[%clk 0:00:08]} 73. Ra2+ {[%clk 0:00:06]}  d2 {[%clk 0:00:09]} 74. Kh5 {[%clk 0:00:04]}  Ke1 {[%clk 0:00:09]} 75. Ra1+ {[%clk 0:00:05]}  d1=Q+ {[%clk 0:00:09]} 76. Rxd1+ {[%clk 0:00:05]}  Kxd1 {[%clk 0:00:09]} 0-1


[Site "https://www.chess.com"]

[Event "Titled Tuesday Blitz July 11 Late 2023"]
[White "Villuendas Valero, Adrian"]
[Black "2KRK1"]
[WhiteFideId "2262460"]
[WhiteElo "2379"]
[BlackElo "2688"]
[Result "0-1"]
[Round "1"]
[TimeControl "180+2"]
[Date "2023.07.11"]
[WhiteClock "0:00:00"]
[BlackClock "0:00:20"]
[Board "97"]

1. e4 {[%clk 0:02:59]}  Nf6 {[%clk 0:02:59]} 2. e5 {[%clk 0:02:59]}  Nd5 {[%clk 0:02:59]} 3. d4 {[%clk 0:02:59]}  d6 {[%clk 0:03:00]} 4. c4 {[%clk 0:03:00]}  Nb6 {[%clk 0:02:59]} 5. exd6 {[%clk 0:03:00]}  exd6 {[%clk 0:02:59]} 6. Nc3 {[%clk 0:03:00]}  Be7 {[%clk 0:02:59]} 7. Bd3 {[%clk 0:03:01]}  O-O {[%clk 0:02:56]} 8. Nge2 {[%clk 0:03:01]}  Nc6 {[%clk 0:02:57]} 9. O-O {[%clk 0:02:59]}  Bg4 {[%clk 0:02:57]} 10. f3 {[%clk 0:02:58]}  Bh5 {[%clk 0:02:57]} 11. Nf4 {[%clk 0:02:47]}  Bg6 {[%clk 0:02:57]} 12. Nxg6 {[%clk 0:02:46]}  hxg6 {[%clk 0:02:58]} 13. Be3 {[%clk 0:02:42]}  Re8 {[%clk 0:02:54]} 14. Qd2 {[%clk 0:02:35]}  Bf6 {[%clk 0:02:55]} 15. Ne2 {[%clk 0:02:23]}  d5 {[%clk 0:02:09]} 16. c5 {[%clk 0:02:19]}  Nc4 {[%clk 0:02:09]} 17. Bxc4 {[%clk 0:02:18]}  dxc4 {[%clk 0:02:10]} 18. Rfd1 {[%clk 0:01:52]}  Qe7 {[%clk 0:02:01]} 19. Kf2 {[%clk 0:01:46]}  Rad8 {[%clk 0:01:53]} 20. Rac1 {[%clk 0:01:25]}  Nb4 {[%clk 0:01:27]} 21. Rxc4 {[%clk 0:01:07]}  Nd5 {[%clk 0:01:27]} 22. Bf4 {[%clk 0:01:01]}  Qxe2+ {[%clk 0:01:10]} 23. Qxe2 {[%clk 0:00:53]}  Rxe2+ {[%clk 0:01:11]} 24. Kxe2 {[%clk 0:00:53]}  Nxf4+ {[%clk 0:01:11]} 25. Kf2 {[%clk 0:00:54]}  c6 {[%clk 0:01:11]} 26. Rb4 {[%clk 0:00:46]}  Rd7 {[%clk 0:01:09]} 27. g3 {[%clk 0:00:33]}  Nd5 {[%clk 0:01:02]} 28. Rb3 {[%clk 0:00:32]}  g5 {[%clk 0:00:59]} 29. Ra3 {[%clk 0:00:31]}  a6 {[%clk 0:00:59]} 30. Rad3 {[%clk 0:00:23]}  Kf8 {[%clk 0:00:58]} 31. R3d2 {[%clk 0:00:22]}  Nc7 {[%clk 0:00:56]} 32. a4 {[%clk 0:00:16]}  a5 {[%clk 0:00:51]} 33. f4 {[%clk 0:00:13]}  gxf4 {[%clk 0:00:50]} 34. gxf4 {[%clk 0:00:14]}  Nd5 {[%clk 0:00:50]} 35. Kf3 {[%clk 0:00:13]}  Re7 {[%clk 0:00:50]} 36. Re2 {[%clk 0:00:12]}  Rxe2 {[%clk 0:00:50]} 37. Kxe2 {[%clk 0:00:13]}  Nxf4+ {[%clk 0:00:51]} 38. Kf3 {[%clk 0:00:13]}  Nd5 {[%clk 0:00:51]} 39. Rd3 {[%clk 0:00:10]}  g6 {[%clk 0:00:49]} 40. Rb3 {[%clk 0:00:10]}  Nb4 {[%clk 0:00:47]} 41. Ke4 {[%clk 0:00:09]}  Ke7 {[%clk 0:00:39]} 42. Rh3 {[%clk 0:00:08]}  Nd5 {[%clk 0:00:34]} 43. Rf3 {[%clk 0:00:07]}  Bg7 {[%clk 0:00:32]} 44. Rb3 {[%clk 0:00:07]}  f5+ {[%clk 0:00:31]} 45. Kd3 {[%clk 0:00:03]}  Nb4+ {[%clk 0:00:31]} 46. Kc4 {[%clk 0:00:03]}  f4 {[%clk 0:00:29]} 47. Rf3 {[%clk 0:00:02]}  g5 {[%clk 0:00:23]} 48. h4 {[%clk 0:00:03]}  Kf6 {[%clk 0:00:23]} 49. hxg5+ {[%clk 0:00:03]}  Kxg5 {[%clk 0:00:23]} 50. Rf1 {[%clk 0:00:02]}  Kf5 {[%clk 0:00:19]} 51. Rg1 {[%clk 0:00:00]}  Bf6 {[%clk 0:00:20]} 0-1


[Site "https://www.chess.com"]

[Event "Titled Tuesday Blitz July 11 Late 2023"]
[White "Rastbod, Ali"]
[Black "K2JW"]
[WhiteFideId "12567477"]
[WhiteElo "2669"]
[BlackElo "2373"]
[Result "1-0"]
[Round "1"]
[TimeControl "180+2"]
[Date "2023.07.11"]
[WhiteClock "0:00:29"]
[BlackClock "0:00:00"]
[Board "102"]

1. d4 {[%clk 0:02:56]}  d5 {[%clk 0:02:57]} 2. Bf4 {[%clk 0:02:52]}  c5 {[%clk 0:02:53]} 3. e3 {[%clk 0:02:52]}  Nc6 {[%clk 0:02:50]} 4. c3 {[%clk 0:02:52]}  Bf5 {[%clk 0:02:50]} 5. Nd2 {[%clk 0:02:49]}  e6 {[%clk 0:02:44]} 6. Qb3 {[%clk 0:02:49]}  Qd7 {[%clk 0:02:42]} 7. Ngf3 {[%clk 0:02:46]}  f6 {[%clk 0:02:39]} 8. h3 {[%clk 0:02:41]}  c4 {[%clk 0:02:15]} 9. Qb5 {[%clk 0:02:34]}  a6 {[%clk 0:02:11]} 10. Qb6 {[%clk 0:02:34]}  Be7 {[%clk 0:02:06]} 11. Qc7 {[%clk 0:02:15]}  g5 {[%clk 0:01:39]} 12. Bh2 {[%clk 0:02:11]}  Qxc7 {[%clk 0:01:38]} 13. Bxc7 {[%clk 0:02:10]}  b5 {[%clk 0:01:32]} 14. g4 {[%clk 0:01:56]}  Bg6 {[%clk 0:01:31]} 15. a3 {[%clk 0:01:46]}  h5 {[%clk 0:01:16]} 16. Bg2 {[%clk 0:01:45]}  hxg4 {[%clk 0:01:14]} 17. hxg4 {[%clk 0:01:46]}  Rxh1+ {[%clk 0:01:13]} 18. Bxh1 {[%clk 0:01:42]}  Nh6 {[%clk 0:01:11]} 19. Nh2 {[%clk 0:01:42]}  Kd7 {[%clk 0:00:55]} 20. Bg3 {[%clk 0:01:40]}  a5 {[%clk 0:00:41]} 21. e4 {[%clk 0:01:34]}  dxe4 {[%clk 0:00:35]} 22. a4 {[%clk 0:01:15]}  b4 {[%clk 0:00:21]} 23. Nxc4 {[%clk 0:01:12]}  Ra6 {[%clk 0:00:21]} 24. f3 {[%clk 0:00:54]}  bxc3 {[%clk 0:00:20]} 25. bxc3 {[%clk 0:00:53]}  exf3 {[%clk 0:00:18]} 26. Bxf3 {[%clk 0:00:54]}  f5 {[%clk 0:00:16]} 27. Be5 {[%clk 0:00:51]}  Nf7 {[%clk 0:00:11]} 28. Bg3 {[%clk 0:00:45]}  f4 {[%clk 0:00:11]} 29. Bf2 {[%clk 0:00:45]}  Nd6 {[%clk 0:00:09]} 30. Bxc6+ {[%clk 0:00:44]}  Kxc6 {[%clk 0:00:05]} 31. Ne5+ {[%clk 0:00:45]}  Kd5 {[%clk 0:00:06]} 32. Nxg6 {[%clk 0:00:45]}  Bf6 {[%clk 0:00:05]} 33. Rb1 {[%clk 0:00:43]}  Rc6 {[%clk 0:00:03]} 34. Rc1 {[%clk 0:00:37]}  Ne4 {[%clk 0:00:03]} 35. Nf3 {[%clk 0:00:33]}  Nxc3 {[%clk 0:00:03]} 36. Nge5 {[%clk 0:00:31]}  Rc8 {[%clk 0:00:03]} 37. Nd7 {[%clk 0:00:29]}  Bg7 {[%clk 0:00:00]} 38. Nb6+ {[%clk 0:00:29]} 1-0


[Site "https://www.chess.com"]

[Event "Titled Tuesday Blitz July 11 Late 2023"]
[White "Ahn, Hongjin"]
[Black "Bolourchifard, Farzad"]
[WhiteFideId "13201492"]
[BlackFideId "12510084"]
[WhiteElo "2372"]
[BlackElo "2667"]
[Result "0-1"]
[Round "1"]
[TimeControl "180+2"]
[Date "2023.07.11"]
[WhiteClock "0:00:00"]
[BlackClock "0:00:16"]
[Board "103"]

1. d4 {[%clk 0:03:00]}  Nf6 {[%clk 0:02:07]} 2. c4 {[%clk 0:02:59]}  e6 {[%clk 0:02:08]} 3. a3 {[%clk 0:02:59]}  d5 {[%clk 0:02:07]} 4. e3 {[%clk 0:02:57]}  b6 {[%clk 0:02:06]} 5. Nf3 {[%clk 0:02:55]}  Bb7 {[%clk 0:02:07]} 6. Nc3 {[%clk 0:02:55]}  Be7 {[%clk 0:02:06]} 7. cxd5 {[%clk 0:02:50]}  exd5 {[%clk 0:02:07]} 8. Bd3 {[%clk 0:02:51]}  O-O {[%clk 0:02:07]} 9. O-O {[%clk 0:02:51]}  c5 {[%clk 0:02:08]} 10. Bd2 {[%clk 0:02:51]}  c4 {[%clk 0:01:58]} 11. Bc2 {[%clk 0:02:50]}  Ne4 {[%clk 0:01:57]} 12. Nxe4 {[%clk 0:02:41]}  dxe4 {[%clk 0:01:57]} 13. Ne5 {[%clk 0:02:42]}  Bd5 {[%clk 0:01:49]} 14. f3 {[%clk 0:02:34]}  exf3 {[%clk 0:01:45]} 15. gxf3 {[%clk 0:02:17]}  f6 {[%clk 0:01:42]} 16. Ng4 {[%clk 0:02:17]}  Nc6 {[%clk 0:01:33]} 17. e4 {[%clk 0:02:05]}  Be6 {[%clk 0:01:33]} 18. Bc3 {[%clk 0:01:33]}  Bxg4 {[%clk 0:01:17]} 19. fxg4 {[%clk 0:01:31]}  Qd7 {[%clk 0:01:18]} 20. Rf5 {[%clk 0:01:12]}  Rad8 {[%clk 0:01:12]} 21. Rd5 {[%clk 0:01:07]}  Qe6 {[%clk 0:01:02]} 22. Qf3 {[%clk 0:00:53]}  Bd6 {[%clk 0:00:45]} 23. Qf5 {[%clk 0:00:44]}  Qf7 {[%clk 0:00:30]} 24. Rxd6 {[%clk 0:00:36]}  Rxd6 {[%clk 0:00:30]} 25. d5 {[%clk 0:00:27]}  Ne5 {[%clk 0:00:27]} 26. Bb4 {[%clk 0:00:25]}  Rdd8 {[%clk 0:00:21]} 27. Bxf8 {[%clk 0:00:24]}  Qxf8 {[%clk 0:00:22]} 28. h3 {[%clk 0:00:21]}  Qc5+ {[%clk 0:00:22]} 29. Qf2 {[%clk 0:00:21]}  Qd6 {[%clk 0:00:21]} 30. Rd1 {[%clk 0:00:20]}  a6 {[%clk 0:00:20]} 31. Kg2 {[%clk 0:00:20]}  b5 {[%clk 0:00:20]} 32. Qd4 {[%clk 0:00:20]}  Rc8 {[%clk 0:00:20]} 33. Rf1 {[%clk 0:00:14]}  a5 {[%clk 0:00:19]} 34. Rf5 {[%clk 0:00:12]}  Nf7 {[%clk 0:00:18]} 35. h4 {[%clk 0:00:11]}  Nh6 {[%clk 0:00:18]} 36. Rf3 {[%clk 0:00:08]}  Nxg4 {[%clk 0:00:18]} 37. Rg3 {[%clk 0:00:08]}  Ne5 {[%clk 0:00:17]} 38. Qa7 {[%clk 0:00:08]}  Qc7 {[%clk 0:00:17]} 39. Qd4 {[%clk 0:00:04]}  b4 {[%clk 0:00:17]} 40. d6 {[%clk 0:00:04]}  Qc5 {[%clk 0:00:17]} 41. Qd2 {[%clk 0:00:04]}  Rd8 {[%clk 0:00:16]} 42. Qh6 {[%clk 0:00:03]}  Ng6 {[%clk 0:00:16]} 43. Qd2 {[%clk 0:00:02]}  Qxd6 {[%clk 0:00:16]} 44. Qe2 {[%clk 0:00:00]}  Nf4+ {[%clk 0:00:16]} 0-1


[Site "https://www.chess.com"]

[Event "Titled Tuesday Blitz July 11 Late 2023"]
[White "Shuvalova, Polina"]
[Black "Dubreuil, Julien"]
[WhiteFideId "24171760"]
[BlackFideId "621285"]
[WhiteElo "2663"]
[BlackElo "2366"]
[Result "1-0"]
[Round "1"]
[TimeControl "180+2"]
[Date "2023.07.11"]
[WhiteClock "0:00:34"]
[BlackClock "0:00:16"]
[Board "106"]

1. e4 {[%clk 0:03:00]}  e5 {[%clk 0:02:58]} 2. Nf3 {[%clk 0:03:00]}  Nc6 {[%clk 0:02:58]} 3. Nc3 {[%clk 0:03:01]}  Nf6 {[%clk 0:02:57]} 4. Bb5 {[%clk 0:02:59]}  Bd6 {[%clk 0:02:53]} 5. d3 {[%clk 0:02:59]}  h6 {[%clk 0:02:52]} 6. Be3 {[%clk 0:02:57]}  Qe7 {[%clk 0:02:49]} 7. h3 {[%clk 0:02:57]}  a6 {[%clk 0:02:48]} 8. Ba4 {[%clk 0:02:51]}  Bb4 {[%clk 0:02:35]} 9. Nd2 {[%clk 0:02:41]}  Bxc3 {[%clk 0:02:35]} 10. bxc3 {[%clk 0:02:42]}  O-O {[%clk 0:02:28]} 11. c4 {[%clk 0:02:41]}  d6 {[%clk 0:02:17]} 12. Bxc6 {[%clk 0:02:39]}  bxc6 {[%clk 0:02:16]} 13. Qf3 {[%clk 0:02:28]}  c5 {[%clk 0:02:15]} 14. g4 {[%clk 0:02:23]}  Nh7 {[%clk 0:02:14]} 15. h4 {[%clk 0:02:22]}  f6 {[%clk 0:02:15]} 16. Nf1 {[%clk 0:02:09]}  Rb8 {[%clk 0:02:13]} 17. Ng3 {[%clk 0:02:08]}  Rb2 {[%clk 0:02:10]} 18. Bc1 {[%clk 0:02:02]}  Rb6 {[%clk 0:02:05]} 19. Nf5 {[%clk 0:02:01]}  Qf7 {[%clk 0:01:42]} 20. Rg1 {[%clk 0:02:00]}  Kh8 {[%clk 0:01:41]} 21. a4 {[%clk 0:01:55]}  Rb8 {[%clk 0:01:30]} 22. Ke2 {[%clk 0:01:53]}  Qe8 {[%clk 0:01:20]} 23. a5 {[%clk 0:01:48]}  Be6 {[%clk 0:01:16]} 24. Rh1 {[%clk 0:01:37]}  Qd7 {[%clk 0:01:15]} 25. Be3 {[%clk 0:01:36]}  c6 {[%clk 0:01:14]} 26. Rab1 {[%clk 0:01:27]}  Rb4 {[%clk 0:01:11]} 27. Bd2 {[%clk 0:01:27]}  Rbb8 {[%clk 0:01:07]} 28. Rb6 {[%clk 0:01:24]}  Rxb6 {[%clk 0:01:04]} 29. axb6 {[%clk 0:01:24]}  Rb8 {[%clk 0:01:03]} 30. g5 {[%clk 0:01:18]}  fxg5 {[%clk 0:01:01]} 31. hxg5 {[%clk 0:01:17]}  Rf8 {[%clk 0:00:52]} 32. g6 {[%clk 0:01:03]}  Bxf5 {[%clk 0:00:50]} 33. exf5 {[%clk 0:01:00]}  Rxf5 {[%clk 0:00:49]} 34. Qh3 {[%clk 0:00:40]}  Nf8 {[%clk 0:00:33]} 35. b7 {[%clk 0:00:39]}  Nxg6 {[%clk 0:00:25]} 36. b8=Q+ {[%clk 0:00:37]}  Kh7 {[%clk 0:00:16]} 37. Bxh6 {[%clk 0:00:34]} 1-0


[Site "https://www.chess.com"]